bitfinex/quotes_BTCUSD_20240908
["timestamp","ask_amount","ask_price","bid_price","bid_amount"]
[1725803580083,0.000815,54504.0,54503.0,0.88658579]
[1725803580766,0.000815,54504.0,54503.0,0.51963379]
[1725803580995,0.183459,54508.0,54507.0,0.078]
[1725803581225,0.183459,54508.0,54507.0,0.1385]
[1725803582379,0.183459,54508.0,54507.0,0.1485]
[1725803582611,0.05506541,54509.0,54507.0,0.1485]
[1725803582612,0.26505123,54509.0,54507.0,0.1485]
[1725803583046,0.1,54508.0,54507.0,0.1585]
[1725803583293,0.15506521,54508.0,54507.0,0.1585]
[1725803583493,0.283459,54508.0,54507.0,0.1485]
[1725803583980,0.283459,54508.0,54507.0,0.1575]
[1725803584929,0.1,54508.0,54507.0,0.1575]
[1725803585174,0.1,54508.0,54507.0,0.149128]
[1725803585417,0.000814,54509.0,54508.0,0.1385]
[1725803585651,0.000814,54509.0,54508.0,0.321957]
[1725803586604,0.000814,54509.0,54508.0,0.330957]
[1725803586852,0.000814,54509.0,54508.0,0.339957]
[1725803587543,0.000814,54509.0,54508.0,0.1565]
[1725803590069,0.184269,54509.0,54508.0,0.1565]
[1725803590495,0.55118,54509.0,54508.0,0.1565]
[1725803590732,0.918091,54509.0,54508.0,0.1565]
[1725803590941,0.918091,54509.0,54508.0,0.018]
[1725803590942,1.285002,54509.0,54508.0,0.018]
[1725803593181,1.3674638,54509.0,54508.0,0.018]
[1725803593395,1.43949349,54509.0,54508.0,0.018]
[1725803594283,1.35695405,54509.0,54508.0,0.018]
[1725803596051,1.35667386,54509.0,54508.0,0.018]
[1725803598357,0.62285186,54509.0,54508.0,0.1605]
[1725803598588,1.02815724,54509.0,54508.0,0.1605]
[1725803598810,0.94550062,54509.0,54508.0,0.1605]
[1725803600929,0.000814,54509.0,54508.0,0.1605]
[1725803601154,0.05591506,54509.0,54508.0,0.343959]
[1725803601422,0.000814,54509.0,54508.0,0.343959]
[1725803602365,0.000814,54509.0,54508.0,0.1605]
[1725803602599,0.000814,54509.0,54508.0,0.343959]
[1725803602836,0.000814,54509.0,54508.0,0.1605]
[1725803603810,0.000814,54509.0,54508.0,0.343959]
[1725803604738,0.000814,54509.0,54508.0,0.710877]
[1725803607617,0.000814,54509.0,54508.0,0.018]
[1725803607618,0.55118,54509.0,54508.0,0.018]
[1725803607845,0.97220043,54509.0,54508.0,0.018]
[1725803608097,1.33911143,54509.0,54508.0,0.018]
[1725803608830,1.43911143,54509.0,54508.0,0.018]
[1725803609099,1.43911143,54509.0,54508.0,0.019628]
[1725803609316,1.392288,54509.0,54508.0,0.019628]
[1725803609550,1.43795309,54509.0,54508.0,0.019628]
[1725803609785,1.47490178,54509.0,54508.0,0.019628]
[1725803610005,1.392288,54509.0,54508.0,0.019628]
[1725803610224,1.47490217,54509.0,54508.0,0.019628]
[1725803610721,1.392288,54509.0,54508.0,0.019628]
[1725803611192,1.46680089,54509.0,54508.0,0.019628]
[1725803611401,1.49555799,54509.0,54508.0,0.019628]
[1725803613009,1.0460341,54509.0,54508.0,0.019628]
[1725803613898,1.57359608,54509.0,54508.0,0.019628]
[1725803614131,1.4129451,54509.0,54508.0,0.019628]
[1725803614358,1.49556006,54509.0,54508.0,0.019628]
[1725803614592,1.49555914,54509.0,54508.0,0.019628]
[1725803614813,1.4129451,54509.0,54508.0,0.019628]
[1725803615031,1.49556066,54509.0,54508.0,0.019628]
[1725803615286,1.49556008,54509.0,54508.0,0.019628]
[1725803615517,1.49556026,54509.0,54508.0,0.019628]
[1725803617788,1.46680316,54509.0,54508.0,0.019628]
[1725803618018,1.384188,54509.0,54508.0,0.014628]
[1725803618919,1.46680379,54509.0,54508.0,0.014628]
[1725803619175,1.42907143,54509.0,54508.0,0.014628]
[1725803620294,2.02345851,54509.0,54508.0,0.014628]
[1725803620518,2.14835231,54509.0,54508.0,0.014628]
[1725803620747,2.20011219,54509.0,54508.0,0.014628]
[1725803620965,2.20092719,54509.0,54508.0,0.014628]
[1725803621180,2.75369362,54509.0,54508.0,0.014628]
[1725803621401,2.75369362,54509.0,54508.0,0.005628]
[1725803621622,2.75369362,54509.0,54508.0,0.007628]
[1725803621848,2.75369362,54509.0,54508.0,0.003628]
[1725803622090,2.75369362,54509.0,54508.0,0.002628]
[1725803622309,2.56783819,54509.0,54508.0,0.001628]
[1725803622534,2.57183819,54509.0,54508.0,0.001628]
[1725803622756,2.57783819,54509.0,54508.0,0.002628]
[1725803623008,2.57983819,54509.0,54508.0,0.002628]
[1725803623460,2.57183819,54509.0,54508.0,0.001628]
[1725803623675,2.56783819,54509.0,54508.0,0.002628]
[1725803623905,2.57683819,54509.0,54508.0,0.002628]
[1725803624116,2.58183819,54509.0,54508.0,0.002628]
[1725803624340,2.42308088,54509.0,54508.0,0.002628]
[1725803625029,2.41085998,54509.0,54508.0,0.002628]
[1725803625247,2.42085998,54509.0,54508.0,0.002628]
[1725803626352,2.41085998,54509.0,54508.0,0.002628]
[1725803626864,2.42085998,54509.0,54508.0,0.002628]
[1725803627076,2.60584305,54509.0,54508.0,0.002628]
[1725803627920,2.60784305,54509.0,54508.0,0.002628]
[1725803629708,2.57908317,54509.0,54508.0,0.002628]
[1725803629918,2.60784546,54509.0,54508.0,0.002628]
[1725803630768,2.45067036,54509.0,54508.0,0.002628]
[1725803630996,2.6060521,54509.0,54508.0,0.002628]
[1725803634629,2.6040521,54509.0,54508.0,0.002628]
[1725803634895,1.99929269,54509.0,54508.0,0.002628]
[1725803635593,1.83439659,54509.0,54508.0,0.002628]
[1725803641603,2.20940759,54509.0,54508.0,0.002628]
[1725803641826,2.38430369,54509.0,54508.0,0.002628]
[1725803642059,2.56928676,54509.0,54508.0,0.002628]
[1725803642767,2.55118676,54509.0,54508.0,0.002628]
[1725803642978,2.38629066,54509.0,54508.0,0.002628]
[1725803647019,2.35752837,54509.0,54508.0,0.002628]
[1725803648220,2.36002661,54509.0,54508.0,0.002628]
[1725803648456,2.52493548,54509.0,54508.0,0.002628]
[1725803649607,2.52498059,54509.0,54508.0,0.002628]
[1725803650074,2.63990116,54509.0,54508.0,0.002628]
[1725803650304,2.50370871,54509.0,54508.0,0.002628]
[1725803653119,2.50167975,54509.0,54508.0,0.002628]
[1725803654747,2.13476875,54509.0,54508.0,0.002628]
[1725803655930,2.32046893,54509.0,54508.0,0.002628]
[1725803656653,2.13476875,54509.0,54508.0,0.002628]
[1725803657810,2.13188355,54509.0,54508.0,0.002628]
[1725803658048,2.31769115,54509.0,54508.0,0.002628]
[1725803658253,2.13188355,54509.0,54508.0,0.002628]
[1725803659376,2.31769115,54509.0,54508.0,0.002628]
[1725803660274,2.69460215,54509.0,54508.0,0.002628]
[1725803660487,2.71760215,54509.0,54508.0,0.002628]
[1725803660709,2.53179455,54509.0,54508.0,0.002628]
[1725803662469,2.58495409,54509.0,54503.0,0.00163]
[1725803662736,2.58495409,54509.0,54495.0,0.1485]
[1725803662737,0.01,54501.0,54495.0,0.1485]
[1725803662979,0.02,54506.0,54495.0,0.1485]
[1725803662980,1.81678041,54496.0,54495.0,0.1485]
[1725803663221,2.09070302,54496.0,54495.0,0.1485]
[1725803663690,2.11947038,54496.0,54495.0,0.1485]
[1725803664398,1.93597138,54496.0,54495.0,0.1485]
[1725803664624,1.93597138,54496.0,54495.0,0.1515]
[1725803664625,1.82228081,54496.0,54495.0,0.1515]
[1725803664848,1.82228081,54496.0,54495.0,0.1485]
[1725803665036,2.00577981,54496.0,54495.0,0.1485]
[1725803665799,2.00577981,54496.0,54495.0,0.1515]
[1725803666225,2.00677981,54496.0,54495.0,0.1515]
[1725803666444,2.00677981,54496.0,54495.0,0.1485]
[1725803666709,1.82379674,54496.0,54495.0,0.1485]
[1725803667526,1.81956677,54496.0,54495.0,0.15013]
[1725803667752,1.84708371,54496.0,54495.0,0.15013]
[1725803668206,1.85008371,54496.0,54495.0,0.15013]
[1725803670817,1.85008371,54496.0,54495.0,0.06783]
[1725803671033,2.03506678,54496.0,54495.0,0.06783]
[1725803671257,2.03506678,54496.0,54495.0,0.00163]
[1725803671467,2.04506678,54496.0,54495.0,0.00163]
[1725803672145,2.41206578,54496.0,54495.0,0.00163]
[1725803672371,2.41016141,54496.0,54495.0,0.00163]
[1725803672587,2.41316141,54496.0,54495.0,0.00163]
[1725803673058,2.40716141,54496.0,54495.0,0.00163]
[1725803673489,2.40716141,54496.0,54486.0,0.0633]
[1725803673490,1.65177,54487.0,54486.0,0.0633]
[1725803673708,1.68917004,54487.0,54486.0,0.0633]
[1725803673955,1.78917004,54487.0,54486.0,0.0633]
[1725803674433,1.92149178,54487.0,54486.0,0.0633]
[1725803674656,1.98305947,54487.0,54486.0,0.0633]
[1725803674889,2.16804254,54487.0,54486.0,0.0633]
[1725803675531,1.81794183,54487.0,54486.0,0.0633]
[1725803676614,1.81894183,54487.0,54486.0,0.0633]
[1725803676826,1.81642972,54487.0,54486.0,0.0633]
[1725803677284,1.81742972,54487.0,54486.0,0.0633]
[1725803677710,1.81942972,54487.0,54486.0,0.0633]
[1725803677840,2.00241279,54487.0,54486.0,0.0633]
[1725803678279,2.00741279,54487.0,54486.0,0.0633]
[1725803678873,2.00541279,54487.0,54486.0,0.0633]
[1725803679140,2.00541279,54487.0,54486.0,0.06493]
[1725803679351,2.00941279,54487.0,54486.0,0.06493]
[1725803679664,2.00441279,54487.0,54486.0,0.06493]
[1725803679885,2.028973,54483.0,54482.0,0.00163]
[1725803680122,2.16637304,54483.0,54482.0,0.00163]
[1725803683232,2.18337304,54483.0,54482.0,0.00163]
[1725803683691,2.17637304,54483.0,54482.0,0.00163]
[1725803684135,2.18537304,54483.0,54482.0,0.00163]
[1725803684362,2.32940899,54483.0,54482.0,0.00163]
[1725803686519,2.31227602,54483.0,54482.0,0.00163]
[1725803686777,2.4495169,54483.0,54482.0,0.00163]
[1725803688138,2.0824309,54483.0,54482.0,0.00163]
[1725803688363,2.4495169,54483.0,54482.0,0.00163]
[1725803688796,2.0824309,54483.0,54482.0,0.00163]
[1725803689641,1.94519002,54483.0,54482.0,0.00163]
[1725803689863,2.0824309,54483.0,54482.0,0.00163]
[1725803690079,2.0834309,54483.0,54482.0,0.00163]
[1725803690307,2.11120605,54483.0,54482.0,0.00163]
[1725803690747,2.08372033,54483.0,54482.0,0.00163]
[1725803692355,1.9346981,54483.0,54482.0,0.00163]
[1725803692541,1.9536981,54483.0,54482.0,0.00163]
[1725803692763,2.08467618,54483.0,54482.0,0.00163]
[1725803693083,2.06567618,54483.0,54482.0,0.00163]
[1725803693299,2.07367618,54483.0,54482.0,0.00163]
[1725803693522,2.08167618,54483.0,54482.0,0.00163]
[1725803693751,1.9506981,54483.0,54482.0,0.00163]
[1725803694184,1.80666215,54483.0,54482.0,0.00163]
[1725803694327,1.80666215,54483.0,54482.0,0.13843]
[1725803695547,1.79866215,54483.0,54482.0,0.13843]
[1725803695973,1.80566215,54483.0,54482.0,0.13843]
[1725803696386,1.79866215,54483.0,54482.0,0.13843]
[1725803696646,1.80466215,54483.0,54482.0,0.13843]
[1725803696860,1.95287007,54483.0,54482.0,0.13843]
[1725803697083,1.95987007,54483.0,54482.0,0.13843]
[1725803697538,1.95287007,54483.0,54482.0,0.13843]
[1725803697733,1.95887007,54483.0,54482.0,0.13843]
[1725803698180,1.95887007,54483.0,54482.0,0.06333]
[1725803700417,1.763887,54483.0,54482.0,0.06333]
[1725803700600,1.773887,54483.0,54482.0,0.06333]
[1725803700966,1.763887,54483.0,54482.0,0.06333]
[1725803701187,1.763887,54483.0,54482.0,0.13843]
[1725803704891,1.89825938,54483.0,54482.0,0.13843]
[1725803705541,1.78837546,54483.0,54482.0,0.13843]
[1725803707117,1.97092047,54483.0,54482.0,0.13843]
[1725803709922,0.1375295,54483.0,54482.0,0.368723]
[1725803710218,0.000815,54486.0,54485.0,0.550609]
[1725803710609,0.000815,54486.0,54485.0,0.687409]
[1725803711514,0.000815,54486.0,54485.0,0.686409]
[1725803711947,0.000815,54486.0,54485.0,0.685409]
[1725803712603,0.000815,54486.0,54485.0,1.052482]
[1725803712822,0.001815,54486.0,54485.0,1.059482]
[1725803713049,0.002815,54486.0,54485.0,1.065482]
[1725803714313,0.001815,54486.0,54485.0,1.21172296]
[1725803714517,0.002815,54486.0,54485.0,1.21772296]
[1725803714717,0.001815,54486.0,54485.0,1.21072296]
[1725803714931,0.002815,54486.0,54485.0,1.21872296]
[1725803715398,0.002815,54486.0,54485.0,1.066482]
[1725803717947,0.000815,54486.0,54485.0,1.052482]
[1725803718143,0.001815,54486.0,54485.0,1.060482]
[1725803718371,0.002815,54486.0,54485.0,1.071482]
[1725803718591,0.001815,54486.0,54485.0,1.063482]
[1725803718809,0.002815,54486.0,54485.0,1.22452296]
[1725803719928,0.002815,54486.0,54485.0,1.59159596]
[1725803720383,0.000815,54496.0,54494.0,0.183506]
[1725803720612,0.000815,54496.0,54495.0,0.1399]
[1725803720839,0.000815,54496.0,54495.0,0.323403]
[1725803721302,0.000815,54496.0,54495.0,0.1399]
[1725803721303,0.02762923,54496.0,54495.0,0.1399]
[1725803721538,0.000815,54496.0,54495.0,1.057415]
[1725803721775,0.001815,54496.0,54495.0,1.17234435]
[1725803722272,0.000815,54496.0,54495.0,1.057415]
[1725803722507,0.001815,54496.0,54495.0,1.065415]
[1725803722966,0.002815,54496.0,54495.0,1.071415]
[1725803725509,0.1,54505.0,54495.0,1.071415]
[1725803725510,0.0276834,54513.0,54508.0,0.183459]
[1725803725770,0.0276834,54513.0,54507.0,0.08820856]
[1725803725771,0.184253,54513.0,54507.0,0.08820856]
[1725803726001,0.184253,54513.0,54508.0,0.1399]
[1725803726242,0.184253,54513.0,54508.0,0.690277]
[1725803726243,0.00081,54513.0,54508.0,0.690277]
[1725803727159,0.001815,54509.0,54508.0,0.690277]
[1725803727386,0.000815,54509.0,54508.0,0.690277]
[1725803727890,0.004815,54509.0,54508.0,0.696277]
[1725803728608,0.001815,54509.0,54508.0,0.696277]
[1725803728840,0.002815,54509.0,54508.0,0.710277]
[1725803730550,0.001815,54509.0,54508.0,0.704277]
[1725803731459,0.001815,54509.0,54508.0,0.718277]
[1725803731460,0.002815,54509.0,54508.0,0.718277]
[1725803731679,0.002815,54509.0,54508.0,1.071195]
[1725803731680,0.001815,54509.0,54508.0,1.071195]
[1725803731912,0.000815,54509.0,54508.0,1.57674666]
[1725803732146,0.001815,54509.0,54508.0,1.59074666]
[1725803732625,0.001815,54509.0,54508.0,1.60474666]
[1725803732850,0.001815,54509.0,54508.0,1.452113]
[1725803733577,0.000815,54509.0,54508.0,1.438113]
[1725803734026,0.001815,54509.0,54508.0,1.452113]
[1725803734271,0.001815,54509.0,54508.0,1.60214516]
[1725803734514,0.001815,54509.0,54508.0,1.61614516]
[1725803734798,0.001815,54509.0,54508.0,1.071195]
[1725803735036,0.001815,54509.0,54508.0,1.085195]
[1725803735037,0.002815,54509.0,54508.0,1.085195]
[1725803735504,0.001815,54509.0,54508.0,1.071195]
[1725803735751,0.001815,54509.0,54508.0,0.704277]
[1725803736672,0.001815,54509.0,54508.0,1.071195]
[1725803737157,0.002815,54509.0,54508.0,1.085195]
[1725803737623,0.39551066,54532.0,54510.0,0.1405]
[1725803737859,0.39551066,54532.0,54510.0,0.20386266]
[1725803738303,0.18343,54517.0,54512.0,0.183444]
[1725803738743,0.18343,54517.0,54514.0,0.0621]
[1725803738970,0.18343,54517.0,54515.0,0.0784]
[1725803740867,0.001,54517.0,54516.0,0.1405]
[1725803742215,0.57756635,54520.0,54516.0,0.323929]
[1725803742216,0.02730135,54520.0,54516.0,0.323929]
[1725803742438,0.183424,54519.0,54516.0,0.1525]
[1725803743649,0.001,54517.0,54516.0,0.348932]
[1725803743865,0.18342,54520.0,54516.0,0.323932]
[1725803744105,0.18342,54520.0,54517.0,0.183428]
[1725803744325,0.18342,54520.0,54516.0,0.1495]
[1725803744549,0.283415,54521.0,54516.0,0.332931]
[1725803744781,0.001,54519.0,54516.0,0.342931]
[1725803745039,0.001,54519.0,54516.0,0.41373296]
[1725803745276,0.12748109,54521.0,54517.0,0.0784]
[1725803745512,0.001,54520.0,54517.0,0.0964]
[1725803746922,0.31089809,54521.0,54517.0,0.12141466]
[1725803747177,0.12748109,54521.0,54517.0,0.12141466]
[1725803747411,0.001,54519.0,54518.0,0.0621]
[1725803747875,0.001,54519.0,54518.0,0.1405]
[1725803748124,0.001,54520.0,54518.0,0.1405]
[1725803748863,0.02748109,54521.0,54518.0,0.1545]
[1725803749347,0.1,54523.0,54518.0,0.1545]
[1725803750030,0.1,54523.0,54518.0,0.1405]
[1725803750249,0.001,54519.0,54518.0,0.1545]
[1725803750468,0.001,54519.0,54518.0,0.1685]
[1725803750998,0.1,54523.0,54518.0,0.1405]
[1725803751232,0.283409,54523.0,54518.0,0.1405]
[1725803751450,0.283409,54523.0,54518.0,0.1535]
[1725803751451,0.183412,54522.0,54518.0,0.1535]
[1725803751666,0.12831976,54523.0,54518.0,0.1405]
[1725803751667,0.1,54521.0,54518.0,0.1405]
[1725803751898,0.001815,54519.0,54518.0,0.1545]
[1725803752117,0.001815,54519.0,54518.0,0.1665]
[1725803753486,0.001815,54519.0,54518.0,0.1545]
[1725803753704,0.000815,54519.0,54518.0,0.1405]
[1725803753939,0.000815,54519.0,54518.0,0.1545]
[1725803754162,0.000815,54519.0,54518.0,0.1675]
[1725803754379,0.000815,54519.0,54518.0,0.1405]
[1725803754603,0.000815,54519.0,54518.0,0.1685]
[1725803754835,0.001815,54519.0,54518.0,0.1685]
[1725803759314,0.185237,54519.0,54518.0,0.1685]
[1725803759761,1.02354648,54519.0,54518.0,0.1064]
[1725803760010,0.001815,54519.0,54518.0,0.26040856]
[1725803760235,0.001815,54519.0,54518.0,0.44383356]
[1725803760929,0.001815,54519.0,54518.0,0.26040856]
[1725803764259,0.001815,54519.0,54518.0,0.26203856]
[1725803765170,0.001815,54519.0,54518.0,0.17383]
[1725803765403,0.001815,54519.0,54518.0,0.10803]
[1725803765404,0.552081,54519.0,54518.0,0.10803]
[1725803766101,0.185237,54519.0,54518.0,0.26203856]
[1725803766833,0.185237,54519.0,54518.0,0.24803856]
[1725803766834,0.184237,54519.0,54518.0,0.24803856]
[1725803767061,0.185237,54519.0,54518.0,0.26103856]
[1725803767285,0.551081,54519.0,54518.0,0.23403856]
[1725803767756,0.553081,54519.0,54518.0,0.17083]
[1725803768225,0.552081,54519.0,54518.0,0.15883]
[1725803768446,0.552081,54519.0,54518.0,0.15783]
[1725803768904,0.64946249,54519.0,54518.0,0.01363]
[1725803769139,0.05671693,54519.0,54518.0,0.24283856]
[1725803769381,0.001815,54519.0,54518.0,0.24283856]
[1725803770072,0.002815,54519.0,54518.0,0.25583856]
[1725803771925,0.002815,54519.0,54518.0,0.43926356]
[1725803776923,0.002815,54519.0,54518.0,0.80611456]
[1725803778098,0.002815,54519.0,54518.0,0.92341262]
[1725803778351,0.002815,54519.0,54518.0,1.66911462]
[1725803779040,0.002815,54519.0,54518.0,1.70011462]
[1725803779275,0.001815,54519.0,54518.0,1.70011462]
[1725803779981,0.001815,54519.0,54518.0,1.68711462]
[1725803780220,0.000815,54519.0,54518.0,1.68711462]
[1725803780704,0.000815,54519.0,54518.0,1.71511462]
[1725803781644,0.000815,54519.0,54518.0,1.68711462]
[1725803781944,0.000815,54519.0,54518.0,1.71511462]
[1725803782186,0.000815,54519.0,54518.0,1.70111462]
[1725803784086,0.000815,54519.0,54518.0,1.71511462]
[1725803784321,0.000815,54519.0,54518.0,1.70111462]
[1725803784560,0.000815,54519.0,54518.0,1.71511462]
[1725803784788,0.000815,54519.0,54518.0,1.71311462]
[1725803785019,0.000815,54519.0,54518.0,1.70111462]
[1725803785505,0.000815,54519.0,54518.0,1.71511462]
[1725803785795,0.000815,54519.0,54518.0,1.70111462]
[1725803787341,0.000815,54519.0,54518.0,1.69911462]
[1725803787559,0.000815,54519.0,54518.0,1.68511462]
[1725803787769,0.000815,54519.0,54518.0,1.68711462]
[1725803787984,0.000815,54519.0,54518.0,1.70111462]
[1725803788205,0.000815,54519.0,54518.0,1.71511462]
[1725803788425,0.000815,54519.0,54518.0,1.68711462]
[1725803788682,0.000815,54519.0,54518.0,1.71511462]
[1725803788920,0.000815,54519.0,54518.0,1.62690606]
[1725803789157,0.000815,54519.0,54518.0,1.70111462]
[1725803789639,0.000815,54519.0,54518.0,1.68711462]
[1725803790598,0.000815,54519.0,54518.0,1.70111462]
[1725803791064,0.183383,54531.0,54530.0,0.08820856]
[1725803793146,0.183383,54531.0,54530.0,0.10220856]
[1725803793630,0.183383,54531.0,54530.0,0.11620856]
[1725803795377,0.366747,54534.0,54530.0,0.11620856]
[1725803795810,0.183381,54531.0,54530.0,0.11620856]
[1725803796313,0.183378,54532.0,54530.0,0.10220856]
[1725803796546,0.183378,54532.0,54530.0,0.11420856]
[1725803796777,0.183378,54532.0,54530.0,0.10220856]
[1725803797254,0.183378,54532.0,54530.0,0.11620856]
[1725803797483,0.183378,54532.0,54530.0,0.10220856]
[1725803797709,0.183378,54532.0,54530.0,0.11420856]
[1725803797936,0.183381,54531.0,54530.0,0.11420856]
[1725803798173,0.183381,54531.0,54530.0,0.10220856]
[1725803798403,0.183381,54531.0,54530.0,0.08820856]
[1725803798630,0.183381,54531.0,54530.0,0.10220856]
[1725803798908,0.183381,54531.0,54530.0,0.11620856]
[1725803799154,0.366751,54533.0,54527.0,0.260795]
[1725803799155,0.183385,54530.0,54527.0,0.16560856]
[1725803800558,0.183385,54530.0,54527.0,0.17960856]
[1725803801549,0.183385,54530.0,54527.0,0.19360856]
[1725803803579,0.183388,54529.0,54527.0,0.19360856]
[1725803804248,0.366762,54532.0,54527.0,0.19360856]
[1725803804458,0.366767,54531.0,54527.0,0.19360856]
[1725803804669,0.183387,54530.0,54527.0,0.17960856]
[1725803804908,0.183387,54530.0,54527.0,0.19360856]
[1725803805137,0.183387,54530.0,54527.0,0.0914]
[1725803805561,0.183387,54530.0,54527.0,0.0774]
[1725803806008,0.183387,54530.0,54527.0,0.0914]
[1725803806223,0.366762,54532.0,54527.0,0.1054]
[1725803806472,0.183386,54530.0,54527.0,0.1054]
[1725803806696,0.18339,54529.0,54527.0,0.1054]
[1725803806920,0.366767,54531.0,54527.0,0.1054]
[1725803807139,0.183389,54529.0,54527.0,0.1054]
[1725803807353,0.183389,54529.0,54527.0,0.0914]
[1725803807799,0.183389,54529.0,54527.0,0.1054]
[1725803808021,0.183389,54529.0,54527.0,0.0914]
[1725803808247,0.183389,54529.0,54527.0,0.0774]
[1725803808477,0.183389,54529.0,54527.0,0.0914]
[1725803808742,0.183389,54529.0,54527.0,0.1054]
[1725803809178,0.183389,54529.0,54527.0,0.0914]
[1725803809586,0.183389,54529.0,54527.0,0.1054]
[1725803811856,0.183389,54529.0,54527.0,0.10703]
[1725803813899,0.183389,54529.0,54528.0,0.23000856]
[1725803814116,0.000815,54530.0,54528.0,0.23000856]
[1725803814372,0.184201,54530.0,54528.0,0.23000856]
[1725803815271,0.184201,54530.0,54528.0,0.25800856]
[1725803815521,0.184201,54530.0,54528.0,0.24400856]
[1725803815744,0.184201,54530.0,54528.0,0.25800856]
[1725803817332,0.184201,54530.0,54528.0,0.24400856]
[1725803817567,0.184201,54530.0,54528.0,0.25800856]
[1725803818733,0.916942,54529.0,54528.0,0.028]
[1725803818989,0.97196922,54529.0,54528.0,0.028]
[1725803819229,0.99948283,54529.0,54528.0,0.028]
[1725803819488,0.916942,54529.0,54528.0,0.028]
[1725803819700,0.97200671,54529.0,54528.0,0.028]
[1725803820606,0.97200671,54529.0,54528.0,0.014]
[1725803820607,0.916942,54529.0,54528.0,0.014]
[1725803820841,0.99948283,54529.0,54528.0,0.014]
[1725803821325,0.99948283,54529.0,54528.0,0.028]
[1725803821326,0.916942,54529.0,54528.0,0.028]
[1725803823392,1.02592729,54529.0,54528.0,0.028]
[1725803824325,1.10295946,54529.0,54528.0,0.028]
[1725803825881,0.94327679,54529.0,54528.0,0.028]
[1725803827009,1.02594226,54529.0,54528.0,0.028]
[1725803831074,1.02593452,54529.0,54528.0,0.028]
[1725803836000,1.02592775,54529.0,54528.0,0.028]
[1725803836862,1.02592775,54529.0,54528.0,0.02963]
[1725803837074,1.02674275,54529.0,54528.0,0.02963]
[1725803844156,2.17149953,54529.0,54528.0,0.02963]
[1725803844375,1.81112662,54529.0,54528.0,0.02963]
[1725803844589,2.34094783,54529.0,54528.0,0.02963]
[1725803844801,2.17568128,54529.0,54528.0,0.02963]
[1725803845027,2.17568128,54529.0,54528.0,0.00163]
[1725803845212,2.17568128,54529.0,54528.0,0.01263]
[1725803845475,2.17568128,54529.0,54528.0,0.02363]
[1725803845716,2.17568128,54529.0,54528.0,0.01263]
[1725803846417,2.22647313,54529.0,54528.0,0.01263]
[1725803846629,2.22647313,54529.0,54528.0,0.00163]
[1725803847129,2.22647313,54529.0,54528.0,0.00563]
[1725803847356,2.22647313,54529.0,54528.0,0.00963]
[1725803847601,2.29507313,54529.0,54528.0,0.00163]
[1725803847812,2.29507313,54529.0,54528.0,0.00263]
[1725803849431,2.12989825,54529.0,54528.0,0.00263]
[1725803850132,2.15864775,54529.0,54528.0,0.00263]
[1725803850609,2.15955955,54529.0,54528.0,0.00263]
[1725803851280,2.15955955,54529.0,54528.0,0.00163]
[1725803851912,2.16055955,54529.0,54528.0,0.00163]
[1725803852151,1.98726643,54529.0,54528.0,0.00163]
[1725803855291,1.98647824,54529.0,54528.0,0.00163]
[1725803855740,1.91787824,54529.0,54528.0,0.00163]
[1725803855955,1.55110124,54529.0,54528.0,0.00163]
[1725803856414,1.48830124,54529.0,54528.0,0.00163]
[1725803856853,1.45955174,54529.0,54528.0,0.00163]
[1725803857072,1.45955174,54529.0,54524.0,0.060567]
[1725803857073,1.283814,54525.0,54524.0,0.060567]
[1725803857501,0.91706,54522.0,54521.0,0.0824]
[1725803857984,1.283884,54522.0,54521.0,0.0824]
[1725803859170,1.283884,54522.0,54521.0,0.0894]
[1725803860090,1.283884,54522.0,54521.0,0.1529]
[1725803860820,1.283884,54522.0,54521.0,0.1639]
[1725803861051,1.283884,54522.0,54521.0,0.1569]
[1725803861302,1.283884,54522.0,54521.0,0.1679]
[1725803861541,0.91706,54522.0,54521.0,0.16953]
[1725803862019,0.94580888,54522.0,54521.0,0.16953]
[1725803864032,0.97249101,54522.0,54521.0,0.16953]
[1725803866805,0.94374213,54522.0,54521.0,0.16953]
[1725803873358,0.97249102,54522.0,54521.0,0.16953]
[1725803874474,0.02874889,54522.0,54521.0,0.16953]
[1725803874696,0.23920722,54529.0,54525.0,0.183401]
[1725803874920,0.05581822,54529.0,54526.0,0.1422]
[1725803875137,0.000815,54529.0,54526.0,0.325598]
[1725803876569,0.000815,54529.0,54526.0,0.339598]
[1725803877212,0.000815,54529.0,54526.0,0.353598]
[1725803877412,0.000815,54529.0,54526.0,0.1702]
[1725803877587,0.000815,54529.0,54526.0,0.353598]
[1725803877789,0.000815,54529.0,54526.0,0.339598]
[1725803878048,0.000815,54529.0,54526.0,0.353598]
[1725803878296,0.02711366,54532.0,54526.0,0.353598]
[1725803878493,0.1,54532.0,54526.0,0.353598]
[1725803878711,0.1,54532.0,54526.0,0.339598]
[1725803878927,0.183386,54530.0,54526.0,0.339598]
[1725803879152,0.366767,54531.0,54526.0,0.1702]
[1725803879413,0.366771,54530.0,54526.0,0.1562]
[1725803879830,0.183391,54529.0,54526.0,0.1702]
[1725803880489,0.183391,54529.0,54526.0,0.1562]
[1725803880709,0.183391,54529.0,54526.0,0.1702]
[1725803880876,0.183392,54528.0,54526.0,0.1702]
[1725803881079,0.183392,54528.0,54526.0,0.242242]
[1725803881488,0.183389,54529.0,54526.0,0.242242]
[1725803881715,0.183389,54529.0,54526.0,0.1562]
[1725803881948,0.183389,54529.0,54526.0,0.1702]
[1725803882156,0.366771,54530.0,54526.0,0.1562]
[1725803882157,0.183392,54528.0,54526.0,0.1562]
[1725803882566,0.183392,54528.0,54526.0,0.1702]
[1725803883040,0.183392,54528.0,54526.0,0.1562]
[1725803883291,0.183392,54528.0,54526.0,0.1422]
[1725803883513,0.183392,54528.0,54526.0,0.1562]
[1725803884443,0.183392,54528.0,54526.0,0.1702]
[1725803884644,0.183392,54528.0,54526.0,0.1562]
[1725803885085,0.183392,54528.0,54526.0,0.1702]
[1725803885530,0.183389,54529.0,54526.0,0.1702]